[Event "FRA-ch Youth U20 2018"]
[Site "Agen"]
[Date "2018.04.21"]
[Round "8"]
[White "Haussernot, Cecile"]
[Black "Guigue, Marie-Celine"]
[Result "1/2-1/2"]
[ECO "C44"]
[WhiteElo "2165"]
[BlackElo "1288"]
[Annotator "NA"]
[PlyCount "123"]
[EventDate "2018.??.??"]
[EventType "swiss"]
[EventCountry "FRA"]
[SourceTitle "playchess.com"]
[Source "ChessBase"]
[SourceQuality "1"]
[TimeControl "5400+30"]

1. e4 {[%emt 0:00:00]} e5 {[%emt 0:00:06]} 2. Nf3 {[%emt 0:00:00]} Nc6 {[%emt 0:00:05]} 3. d4 {[%emt 0:00:00]} exd4 {[%emt 0:02:46]} 4. Nxd4 {[%emt 0:00:00]} Qf6 {[%emt 0:00:06]} 5. Nxc6 {[%emt 0:02:09]} Bc5 {[%emt 0:00:12]} 6. Qf3 {[%emt 0:01:11]} dxc6 {[%emt 0:00:55]} 7. Nc3 {[%emt 0:00:21] C45: Scotch Game} Be6 {[%emt 0:00:38]} 8. Qg3 {[%emt 0:00:46]} O-O-O {[%emt 0:01:01]} 9. Bd3 {[%emt 0:00:15]} (9. Be3 Bxe3 10. Qxe3 Kb8 11. f4 Qe7 12. Bd3 Nh6 13. O-O-O f6 14. g3 Nf7 {½-½ (29) Nepomniachtchi,I (2766)-Carlsen,M (2851) Leuven 2017}) 9... h5 $146 {[%emt 0:07:30]} ({Predecessor:} 9... Qg6 10. Bf4 Qxg3 11. Bxg3 Nf6 12. Bh4 Bd4 13. O-O-O Ng4 14. Rdf1 f6 {0-1 (29) Nikolovski,N (2420)-Erdos,V (2624) Antalya 2017}) 10. h4 {[%emt 0:01:08]} Bd6 {[%emt 0:07:33]} 11. f4 {[%emt 0:02:20]} Bb4 {[%emt 0:05:30]} 12. Bd2 {[%emt 0:01:25]} g6 {[%emt 0:01:41]} ({Black should try} 12... Bg4 $15) 13. a3 {[%emt 0:00:29]} Ba5 {[%emt 0:03:40]} 14. O-O-O {[%emt 0:00:25]} Nh6 {[%emt 0:03:44]} 15. Rhf1 {[%emt 0:04:02]} Qg7 {[%emt 0:05:09]} (15... Bg4 $11 {keeps the balance.}) 16. f5 {[%emt 0:04:50]} Bd7 {[%emt 0:00:16]} 17. Kb1 {[%emt 0:01:31]} ({Better is} 17. Qg5 $16 Bb6 18. e5) 17... Ng4 $1 {[%emt 0:01:44]} 18. f6 Qf8 {[%emt 0:01:17]} 19. Nd5 {[%emt 0:03:02]} cxd5 {[%emt 0:03:16]} 20. Bxa5 {[%emt 0:00:07]} Qc5 {[%emt 0:05:03]} 21. Bb4 {[%emt 0:00:34]} Qe3 {[%emt 0:02:07]} 22. Rf3 {[%emt 0:00:14]} Qb6 {[%emt 0:01:03]} 23. exd5 {[%emt 0:00:15]} Nxf6 {[%emt 0:04:34]} 24. Bc3 {[%emt 0:01:45]} Nxd5 {[%emt 0:05:33]} 25. Bxh8 {[%emt 0:00:07]} Rxh8 {[%emt 0:00:14]} 26. Be4 {[%emt 0:00:46]} Nf6 {[%emt 0:03:14]} 27. Qe5 {[%emt 0:02:17]} Re8 {[%emt 0:01:34]} 28. Qxf6 {[%emt 0:00:11]} Qxf6 {[%emt 0:00:29]} 29. Rxf6 {[%emt 0:00:04]} Rxe4 {[%emt 0:00:36]} 30. Rxf7 {[%emt 0:00:05]} Bc6 {[%emt 0:02:03]} 31. Rg7 {[%emt 0:00:34]} Re6 {[%emt 0:02:32]} 32. Rf1 Be8 {[%emt 0:02:12]} 33. Rf3 {[%emt 0:01:00]} Kd8 {[%emt 0:01:43]} 34. Rd3+ {[%emt 0:00:04]} Kc8 {[%emt 0:00:16]} 35. Rc3 {[%emt 0:00:06]} Bc6 {[%emt 0:01:11]} 36. b4 $18 {[%emt 0:00:24]} a6 {[%emt 0:00:44]} 37. a4 {[%emt 0:02:52]} b5 {[%emt 0:01:02]} 38. axb5 {[%emt 0:00:29]} axb5 {[%emt 0:00:05]} 39. Rc5 {[%emt 0:00:48]} Kb7 {[%emt 0:00:56]} 40. Kc1 {[%emt 0:00:37]} Rd6 {[%emt 0:01:22]} 41. g3 {[%emt 0:02:07]} Kb6 {[%emt 0:03:02]} 42. Re5 {[%emt 0:00:24]} Bd5 {[%emt 0:03:14]} 43. Ree7 {[%emt 0:01:06]} c5 {[%emt 0:02:56]} 44. Rd7 {[%emt 0:01:53]} Rxd7 {[%emt 0:00:35]} 45. Rxd7 {[%emt 0:00:02]} Kc6 {[%emt 0:00:19]} 46. Rg7 {[%emt 0:00:02]} Be4 {[%emt 0:00:21]} 47. bxc5 {[%emt 0:01:07]} Kxc5 {[%emt 0:00:16]} 48. Kd2 {[%emt 0:01:21]} Bf5 {[%emt 0:05:11]} 49. Ke3 {[%emt 0:00:15]} Kd5 {[%emt 0:04:01]} 50. c3 {[%emt 0:00:13]} Kc4 {[%emt 0:00:47]} 51. Rc7+ {[%emt 0:00:02]} Kd5 {[%emt 0:00:28]} 52. Kf4 {[%emt 0:00:38]} Kd6 {[%emt 0:01:42]} 53. Rf7 {[%emt 0:04:05]} Kc5 {[%emt 0:02:57]} 54. Ke5 {[%emt 0:00:11]} Kc4 {[%emt 0:00:50]} 55. Rc7+ {[%emt 0:00:03]} Kb3 {[%emt 0:01:19]} 56. Rc5 {[%emt 0:01:16]} Bd3 {[%emt 0:01:44]} 57. Kd4 {[%emt 0:00:34]} Bc4 {[%emt 0:01:12]} 58. Rc6 {[%emt 0:00:09]} Bf7 {[%emt 0:00:32]} 59. Rf6 {[%emt 0:00:08]} Be8 {[%emt 0:00:25]} 60. Re6 {[%emt 0:00:02]} Bf7 {[%emt 0:00:11]} 61. Re7 {[%emt 0:00:02]} Bc4 {[%emt 0:00:53]} 62. Rg7 {[%emt 0:00:01]} 1/2-1/2

[Event "FRA-ch Youth U20 2018"]
[Site "Agen"]
[Date "2018.04.21"]
[Round "8"]
[White "Laronche, Thomas"]
[Black "Meunier, Clement"]
[Result "1/2-1/2"]
[ECO "C01"]
[WhiteElo "2137"]
[BlackElo "2370"]
[Annotator "NA RC"]
[PlyCount "166"]
[EventDate "2018.??.??"]
[EventType "swiss"]
[EventCountry "FRA"]
[SourceTitle "playchess.com"]
[Source "ChessBase"]
[SourceQuality "1"]
[TimeControl "5400+30"]

1. e4 {[%emt 0:00:00]} e6 {[%emt 0:02:22]} 2. d4 {[%emt 0:00:32]} d5 {[%emt 0:00:01]} 3. exd5 {[%emt 0:00:36]} exd5 {[%emt 0:00:03]} 4. Bd3 {[%emt 0:00:05]} Nc6 {[%emt 0:02:28]} 5. c3 {[%emt 0:00:17]} Bd6 {[%emt 0:00:29]} 6. Ne2 {[%emt 0:02:35]} Nge7 {[%emt 0:00:38]} 7. Bf4 {[%emt 0:05:22]} Bg4 {[%emt 0:07:45] LiveBook: 18 Games} 8. f3 {[%emt 0:02:45] C01: French: Exchange Variation} (8. Qd2 Bxe2 9. Bxe2 O-O 10. O-O Ng6 11. Bxd6 Qxd6 12. g3 {½-½ (12) Markovic,M (2458)-Sedlak,N (2538) Valjevo 2012}) 8... Bxf4 {[%emt 0:01:24]} 9. Nxf4 {[%emt 0:00:24]} Qd6 {[%emt 0:00:10]} 10. fxg4 $146 {[%emt 0:07:53]} ({Predecessor:} 10. Qd2 Bf5 11. Na3 O-O-O 12. O-O-O Rhe8 13. g3 g5 14. Bxf5+ Nxf5 15. Nd3 Qf6 {½-½ (60) Palermo,S (2048)-Vuelban,V (2356) Frascati 2009}) 10... Qxf4 {[%emt 0:00:36]} 11. Nd2 {[%emt 0:00:07]} O-O-O {[%emt 0:03:31]} 12. Qf3 {[%emt 0:00:40]} Qxf3 {[%emt 0:00:54]} 13. gxf3 {[%emt 0:00:26]} (13. Nxf3 $16 f6 14. O-O) 13... Ng6 {[%emt 0:00:01]} 14. Bf5+ {[%emt 0:01:31]} Kb8 {[%emt 0:00:01]} 15. Bxg6 {[%emt 0:17:50]} hxg6 {[%emt 0:00:04]} 16. h4 {[%emt 0:00:04]} Rde8+ {[%emt 0:00:48]} 17. Kf2 {[%emt 0:00:44]} Nd8 {[%emt 0:00:01]} 18. Kg3 {[%emt 0:00:51]} (18. Nb3 $11) 18... Re2 {[%emt 0:00:20]} 19. Rad1 {[%emt 0:02:04]} g5 {[%emt 0:01:41]} 20. h5 {[%emt 0:00:08]} Ne6 {[%emt 0:00:25]} 21. Rhe1 {[%emt 0:02:04]} Nf4 {[%emt 0:00:29]} 22. Rxe2 {[%emt 0:00:19]} Nxe2+ {[%emt 0:00:02]} 23. Kf2 {[%emt 0:00:15]} Nf4 {[%emt 0:00:01]} 24. Nf1 {[%emt 0:00:36]} g6 {[%emt 0:01:24]} 25. hxg6 {[%emt 0:05:56]} fxg6 {[%emt 0:00:26]} 26. Rd2 {[%emt 0:01:59]} Rh1 {[%emt 0:01:24]} 27. Ne3 {[%emt 0:09:40]} c6 {[%emt 0:08:58]} 28. Ng2 {[%emt 0:02:24]} Kc7 {[%emt 0:00:17]} 29. Kg3 {[%emt 0:03:51]} Rg1 {[%emt 0:02:47]} 30. Kh2 {[%emt 0:00:34]} Ra1 {[%emt 0:00:10]} 31. a3 {[%emt 0:01:48]} a5 {[%emt 0:02:34]} 32. Nxf4 {[%emt 0:01:01]} gxf4 {[%emt 0:00:10]} 33. g5 {[%emt 0:00:02]} Kd7 {[%emt 0:02:06]} 34. Re2 {[%emt 0:01:31]} a4 {[%emt 0:00:53]} 35. Kg2 {[%emt 0:03:47]} Rb1 {[%emt 0:00:41]} 36. Kh2 {[%emt 0:00:29]} b6 {[%emt 0:00:13]} 37. Kg2 {[%emt 0:01:51]} c5 {[%emt 0:00:44]} 38. Rd2 {[%emt 0:02:44]} Kd6 {[%emt 0:01:35]} 39. Kh2 {[%emt 0:01:05]} Re1 {[%emt 0:02:13]} 40. Kg2 {[%emt 0:00:23]} Kc6 {[%emt 0:11:20]} 41. Kh2 {[%emt 0:02:28]} Rc1 {[%emt 0:14:11]} 42. Kg2 {[%emt 0:00:25]} Kd6 {[%emt 0:00:08]} 43. Kh2 {[%emt 0:00:15]} Ra1 {[%emt 0:00:03]} 44. Kg2 {[%emt 0:00:04]} Re1 {[%emt 0:00:05]} 45. Kh2 {[%emt 0:00:08]} Ke6 {[%emt 0:00:12]} 46. Kg2 {[%emt 0:00:47]} c4 {[%emt 0:21:09]} 47. Kf2 {[%emt 0:06:07]} Re3 {[%emt 0:00:37]} 48. Rd1 {[%emt 0:00:18]} Kf5 {[%emt 0:00:02]} 49. Rh1 {[%emt 0:02:07]} b5 {[%emt 0:12:45]} 50. Rh8 {[%emt 0:01:27]} b4 {[%emt 0:00:06]} 51. axb4 {[%emt 0:01:00]} a3 {[%emt 0:00:00]} 52. bxa3 {[%emt 0:00:25]} Rxc3 $11 {[%emt 0:00:01]} 53. a4 {[%emt 0:05:27]} Rc2+ {[%emt 0:00:01]} 54. Ke1 {[%emt 0:00:31]} c3 {[%emt 0:04:12]} 55. Rc8 {[%emt 0:00:35]} Rb2 {[%emt 0:00:45]} 56. b5 {[%emt 0:00:30]} Rb4 {[%emt 0:00:05]} 57. Rxc3 {[%emt 0:01:49]} Rxa4 {[%emt 0:00:00]} 58. Rb3 {[%emt 0:00:14]} Ra7 {[%emt 0:00:04]} 59. b6 {[%emt 0:00:04]} Rb7 {[%emt 0:00:00]} 60. Rb5 {[%emt 0:00:12]} Ke6 {[%emt 0:00:33]} 61. Kd2 {[%emt 0:00:19]} Kd6 {[%emt 0:00:11]} 62. Kd3 {[%emt 0:00:03]} Kc6 {[%emt 0:00:40]} 63. Rc5+ {[%emt 0:00:53]} Kd6 {[%emt 0:00:01]} 64. Rc8 {[%emt 0:01:35]} Rxb6 {[%emt 0:00:01]} 65. Rf8 {[%emt 0:00:07]} Rb3+ {[%emt 0:01:08]} 66. Ke2 {[%emt 0:00:04]} Rb2+ {[%emt 0:00:04]} 67. Kf1 {[%emt 0:00:18]} Rd2 {[%emt 0:01:49]} 68. Rxf4 {[%emt 0:00:08]} Ke7 {[%emt 0:00:04]} 69. Rf6 {[%emt 0:00:41]} Rxd4 {[%emt 0:00:04]} 70. Rxg6 {[%emt 0:00:06]} Rd2 {[%emt 0:00:05]} 71. f4 {[%emt 0:01:38]} d4 {[%emt 0:00:28]} 72. Ke1 {[%emt 0:00:15]} Rg2 {[%emt 0:00:35]} 73. Ra6 {[%emt 0:00:09]} Rg4 {[%emt 0:00:42]} 74. Rf6 {[%emt 0:00:14]} Rg2 {[%emt 0:00:02]} 75. Kf1 {[%emt 0:01:22]} d3 {[%emt 0:00:17]} 76. Ke1 {[%emt 0:00:15]} Re2+ {[%emt 0:00:39]} 77. Kd1 {[%emt 0:00:07]} Rg2 {[%emt 0:00:03]} 78. Ra6 {[%emt 0:00:07]} Rf2 {[%emt 0:00:17]} 79. Ra4 {[%emt 0:05:37]} Ke6 {[%emt 0:00:32]} 80. Rd4 {[%emt 0:00:22]} d2 {[%emt 0:02:16]} 81. g6 {[%emt 0:01:07]} Kf6 {[%emt 0:00:13]} 82. Rd6+ {[%emt 0:00:10]} Kg7 {[%emt 0:00:09]} 83. Rxd2 {[%emt 0:00:15]} Rxf4 {[%emt 0:00:01]} 1/2-1/2

[Event "FRA-ch Youth U20 2018"]
[Site "Agen"]
[Date "2018.04.21"]
[Round "8"]
[White "Retailleau, Elise"]
[Black "Aubert, Laurane"]
[Result "0-1"]
[ECO "B40"]
[WhiteElo "1932"]
[BlackElo "1952"]
[Annotator "NA"]
[PlyCount "92"]
[EventDate "2018.??.??"]
[EventType "swiss"]
[EventCountry "FRA"]
[SourceTitle "playchess.com"]
[Source "ChessBase"]
[SourceQuality "1"]
[TimeControl "5400+30"]

1. e4 {[%emt 0:00:00]} c5 {[%emt 0:00:04]} 2. Nf3 {[%emt 0:00:00]} e6 {[%emt 0:00:05]} 3. d4 {[%emt 0:00:00]} cxd4 {[%emt 0:00:06]} 4. Nxd4 {[%emt 0:00:06]} Nf6 {[%emt 0:00:04]} 5. Bd3 {[%emt 0:00:29]} Nc6 {[%emt 0:00:19]} 6. Nxc6 {[%emt 0:00:14]} bxc6 {[%emt 0:00:05]} 7. O-O {[%emt 0:00:14]} d5 {[%emt 0:00:12]} 8. Nc3 {[%emt 0:00:23]} Be7 {[%emt 0:00:42]} 9. e5 {[%emt 0:00:42] B40: Sicilian: 2...e6, Unusual lines} (9. Qe2 O-O 10. b3 Bb7 11. Bb2 c5 12. Rad1 Qc7 13. Nb5 Qb6 14. e5 Nd7 15. c4 d4 16. f4 g6 17. Be4 Bxe4 18. Qxe4 {1-0 (61) Pichot,A (2544)-Tregubov,P (2585) Doha 2016}) 9... Nd7 {[%emt 0:00:07]} 10. Qg4 {[%emt 0:00:20]} g6 {[%emt 0:00:13]} 11. Qg3 {[%emt 0:01:34]} Qb6 {[%emt 0:10:28]} 12. Kh1 {[%emt 0:17:41]} Bf8 $146 {[%emt 0:08:12]} ({Predecessor:} 12... Nc5 13. b3 Nxd3 14. cxd3 {1-0 (29) Novotny,M (2293)-Vokoun,J (2160) Pardubice 2013}) 13. f4 {[%emt 0:05:30]} Bg7 {[%emt 0:00:18]} 14. b3 {[%emt 0:00:43]} O-O {[%emt 0:07:10]} 15. Ba3 {[%emt 0:09:29]} Re8 {[%emt 0:00:31]} 16. Na4 {[%emt 0:00:59]} Qa5 {[%emt 0:03:01]} 17. Bb2 {[%emt 0:05:53]} Bb7 {[%emt 0:06:13]} 18. c4 {[%emt 0:03:12]} Qd8 {[%emt 0:17:07]} 19. Rae1 {[%emt 0:04:48]} a5 $16 {[%emt 0:03:30]} 20. Nc3 {[%emt 0:14:19]} Ba6 {[%emt 0:05:11]} 21. Rf2 {[%emt 0:02:51]} Qb8 {[%emt 0:03:10]} 22. Ba3 {[%emt 0:04:48]} Qb6 {[%emt 0:04:15]} 23. Na4 {[%emt 0:05:04]} Qa7 {[%emt 0:01:38]} 24. Rc2 {[%emt 0:01:41]} Rac8 {[%emt 0:04:20]} 25. Rec1 {[%emt 0:02:51]} d4 {[%emt 0:09:01]} 26. c5 {[%emt 0:07:42]} f6 {[%emt 0:01:02]} 27. exf6 {[%emt 0:01:21]} Nxf6 {[%emt 0:01:29]} 28. Nb6 {[%emt 0:02:27]} Rcd8 {[%emt 0:01:20]} 29. Rd2 {[%emt 0:00:40]} Nh5 {[%emt 0:01:42]} 30. Qf3 {[%emt 0:01:23]} Bxd3 {[%emt 0:00:13]} 31. Rxd3 {[%emt 0:00:19]} Qc7 {[%emt 0:00:26]} 32. g3 {[%emt 0:00:36]} e5 {[%emt 0:03:15]} 33. fxe5 {[%emt 0:02:06]} Bxe5 {[%emt 0:00:31]} 34. Bb2 {[%emt 0:00:36]} Rf8 {[%emt 0:07:36]} 35. Qg2 {[%emt 0:01:28]} Ng7 {[%emt 0:01:19]} 36. Nc4 {[%emt 0:02:22]} Bf6 {[%emt 0:00:34]} 37. Qd2 {[%emt 0:00:58]} Ne6 {[%emt 0:00:27]} 38. Qxa5 {[%emt 0:00:23]} Qd7 {[%emt 0:00:47]} 39. Nb6 {[%emt 0:01:29]} Qf7 {[%emt 0:01:15]} 40. Qe1 {[%emt 0:00:48]} Bg5 {[%emt 0:01:03]} 41. Rc2 {[%emt 0:01:05]} Qf5 {[%emt 0:00:39]} 42. Qd1 {[%emt 0:00:43]} Qe4+ {[%emt 0:00:38]} 43. Rg2 {[%emt 0:00:35]} Rf2 {[%emt 0:00:37]} 44. Qg1 {[%emt 0:00:34]} Rxg2 {[%emt 0:00:24]} 45. Qxg2 {[%emt 0:00:09]} Qxd3 {[%emt 0:00:08]} 46. Qxc6 {[%emt 0:00:26]} Qf1# {[%emt 0:00:05]} 0-1

[Event "FRA-ch Youth U20 2018"]
[Site "Agen"]
[Date "2018.04.21"]
[Round "8"]
[White "Fretel, Liza"]
[Black "Aouachria, Marwa"]
[Result "0-1"]
[ECO "B23"]
[WhiteElo "1849"]
[BlackElo "1687"]
[Annotator "NA"]
[PlyCount "112"]
[EventDate "2018.??.??"]
[EventType "swiss"]
[EventCountry "FRA"]
[SourceTitle "playchess.com"]
[Source "ChessBase"]
[SourceQuality "1"]
[TimeControl "5400+30"]

1. e4 {[%emt 0:00:00]} c5 {[%emt 0:00:04]} 2. Nc3 {[%emt 0:00:00]} e6 {[%emt 0:00:06]} 3. Nf3 {[%emt 0:00:45]} a6 {[%emt 0:00:13]} 4. g3 {[%emt 0:00:41]} Nc6 {[%emt 0:00:39]} 5. Bg2 {[%emt 0:00:19]} g6 {[%emt 0:04:28]} 6. d3 {[%emt 0:01:25] B40: Sicilian: 2...e6, Unusual lines} (6. d4 cxd4 7. Nxd4 Bg7 8. Nde2 d6 9. O-O Nf6 10. Bf4 Ne5 11. Qd2 O-O 12. b3 Qc7 13. Rad1 Ne8 14. Bh6 Bxh6 15. Qxh6 b5 {½-½ (36) Dzhumaev,M (2481)-Tillyaev,U (2346) Tashkent 2016}) 6... Bg7 {[%emt 0:00:24]} 7. Be3 {[%emt 0:00:08]} Nd4 {[%emt 0:01:09]} 8. O-O {[%emt 0:02:10]} Ne7 {[%emt 0:00:13]} 9. Qd2 {[%emt 0:01:42]} Nec6 {[%emt 0:02:18]} 10. Ne1 {[%emt 0:02:42]} h5 $146 {[%emt 0:06:39]} ({Predecessor:} 10... Qa5 11. Bh6 O-O 12. Bxg7 Kxg7 13. f4 d6 14. Qf2 f5 15. exf5 gxf5 {½-½ (23) Kulhanek,T (2330)-Rosko,L (2350) Czechia 2014}) 11. Nd1 {[%emt 0:11:18]} d6 {[%emt 0:12:03]} 12. c3 {[%emt 0:01:17]} Nb5 {[%emt 0:00:07]} 13. Nf3 {[%emt 0:03:38]} Bd7 {[%emt 0:05:01]} 14. a4 {[%emt 0:06:48]} Nc7 {[%emt 0:00:57]} 15. d4 {[%emt 0:01:27]} cxd4 {[%emt 0:05:03]} 16. cxd4 {[%emt 0:00:35]} d5 {[%emt 0:01:30]} 17. e5 {[%emt 0:02:29]} b5 {[%emt 0:04:51]} 18. Bg5 {[%emt 0:04:04]} Ne7 {[%emt 0:12:59]} 19. Rc1 {[%emt 0:04:21]} (19. a5 $18) 19... bxa4 {[%emt 0:03:53]} 20. Qb4 {[%emt 0:02:32]} (20. Ne3 $16) 20... Nb5 {[%emt 0:00:32]} 21. Nc3 {[%emt 0:12:15]} a5 {[%emt 0:07:31]} 22. Qxe7+ {[%emt 0:03:12]} Qxe7 {[%emt 0:00:07]} 23. Bxe7 {[%emt 0:00:02]} Kxe7 {[%emt 0:00:01]} 24. Nxb5 {[%emt 0:04:37]} Bxb5 {[%emt 0:00:03]} 25. Rc7+ {[%emt 0:00:27]} Bd7 {[%emt 0:01:31]} 26. Rfc1 {[%emt 0:05:15]} Rhc8 {[%emt 0:01:43]} 27. Ne1 {[%emt 0:00:53]} Kd8 {[%emt 0:00:39]} 28. Rxc8+ {[%emt 0:05:29]} Rxc8 {[%emt 0:00:03]} 29. Rxc8+ {[%emt 0:00:35]} Kxc8 {[%emt 0:01:07]} 30. Bf1 {[%emt 0:00:50]} Bf8 {[%emt 0:00:51]} 31. Nc2 {[%emt 0:02:55]} Kb7 {[%emt 0:01:01]} 32. f3 {[%emt 0:01:29]} Kb6 {[%emt 0:01:24]} 33. Kf2 {[%emt 0:00:24]} Bb5 {[%emt 0:00:56]} 34. Be2 {[%emt 0:00:15]} Bb4 {[%emt 0:01:42]} 35. Ke3 {[%emt 0:01:03]} Be7 {[%emt 0:02:24]} 36. h4 {[%emt 0:02:58]} Bxe2 {[%emt 0:02:40]} 37. Kxe2 {[%emt 0:00:05]} Kb5 {[%emt 0:00:45]} 38. Kd3 {[%emt 0:00:03]} g5 {[%emt 0:00:21]} 39. hxg5 {[%emt 0:02:11]} Bxg5 {[%emt 0:00:03]} 40. f4 {[%emt 0:01:13]} Be7 {[%emt 0:00:09]} 41. f5 {[%emt 0:03:40]} a3 {[%emt 0:05:11]} 42. f6 {[%emt 0:05:39]} Bf8 $19 {[%emt 0:00:19]} 43. b3 {[%emt 0:00:25]} Bb4 {[%emt 0:01:45]} 44. Ke3 {[%emt 0:02:38]} a4 {[%emt 0:00:26]} 45. bxa4+ {[%emt 0:01:28]} Kxa4 {[%emt 0:00:03]} 46. Kd3 {[%emt 0:00:07]} Kb3 {[%emt 0:00:19]} 47. Na1+ {[%emt 0:00:40]} Kb2 {[%emt 0:00:35]} 48. Nc2 {[%emt 0:00:06]} Bf8 {[%emt 0:00:23]} 49. Nxa3 {[%emt 0:03:19]} Kxa3 {[%emt 0:00:03]} 50. Ke3 {[%emt 0:00:27]} Bh6+ {[%emt 0:00:42]} 51. Kf3 {[%emt 0:00:55]} Kb4 {[%emt 0:00:08]} 52. g4 {[%emt 0:00:30]} h4 {[%emt 0:00:11]} 53. g5 {[%emt 0:00:22]} Bxg5 {[%emt 0:00:21]} 54. Kg4 {[%emt 0:00:04]} Bh6 {[%emt 0:00:14]} 55. Kxh4 {[%emt 0:00:04]} Kc4 {[%emt 0:00:10]} 56. Kh5 {[%emt 0:00:06]} Bf8 {[%emt 0:00:07]} 0-1

[Event "FRA-ch Youth U20 2018"]
[Site "Agen"]
[Date "2018.04.21"]
[Round "8"]
[White "Terrazzoni, Claire"]
[Black "Bartels, Karina"]
[Result "1/2-1/2"]
[ECO "B23"]
[WhiteElo "1819"]
[BlackElo "1702"]
[Annotator "NA"]
[PlyCount "68"]
[EventDate "2018.??.??"]
[EventType "swiss"]
[EventCountry "FRA"]
[SourceTitle "playchess.com"]
[Source "ChessBase"]
[SourceQuality "1"]
[TimeControl "5400+30"]

1. e4 {[%emt 0:00:00]} c5 {[%emt 0:00:02]} 2. Nc3 {[%emt 0:00:00]} a6 {[%emt 0:00:13]} 3. Nf3 {[%emt 0:00:00]} b5 {[%emt 0:00:32]} 4. d4 {[%emt 0:00:02]} cxd4 {[%emt 0:00:22]} 5. Nxd4 {[%emt 0:00:07]} Bb7 {[%emt 0:00:35]} 6. Bg5 {[%emt 0:00:47] B28: Sicilian: 2 Nf3 a6 (O'Kelly Variation)} d6 {[%emt 0:13:49]} (6... h6 $11 {keeps the balance.} 7. Bh4 Nf6) (6... Qc7 7. Qd2 e6 8. Bd3 Nc6 9. Nxc6 Qxc6 10. O-O Ne7 11. Rfe1 Ng6 12. a4 b4 13. Nd5 h6 {0-1 (38) Caruana,F (2807)-Nepomniachtchi,I (2751) Saint Louis 2017}) 7. a4 {[%emt 0:02:54]} b4 $146 {[%emt 0:02:43]} ({Find the theoretical novelty and annotate with similar games:} 7... bxa4 8. Rxa4 Nf6 9. Bxf6 gxf6 10. Qh5 Nc6 11. Nxc6 Bxc6 12. Bc4 Bxa4 13. Bxf7+ Kd7 {½-½ (32) Ramnath,B (2372)-Deepan Chakkravarthy,J (2518) Mumbai 2009}) 8. Nd5 {[%emt 0:00:17]} Nf6 {[%emt 0:01:56]} ({Black should try} 8... Nd7 $14) 9. Bxf6 {[%emt 0:02:15]} gxf6 {[%emt 0:01:08]} 10. Qf3 {[%emt 0:05:08]} Bxd5 {[%emt 0:06:17]} 11. exd5 {[%emt 0:00:24]} Qb6 {[%emt 0:01:37]} 12. Qe4 {[%emt 0:08:18]} Nd7 {[%emt 0:19:14]} 13. a5 {[%emt 0:08:19]} Qb7 {[%emt 0:00:52]} 14. Nc6 {[%emt 0:18:56]} b3 {[%emt 0:01:39]} 15. c3 {[%emt 0:03:58]} Nc5 {[%emt 0:07:29]} 16. Qb4 {[%emt 0:02:16]} Rg8 {[%emt 0:10:30]} 17. Qxb7 {[%emt 0:04:26]} Nxb7 {[%emt 0:00:01]} 18. Nb4 {[%emt 0:09:28]} Nc5 {[%emt 0:01:26]} 19. g3 {[%emt 0:01:41]} e5 {[%emt 0:05:08]} 20. Ra3 {[%emt 0:03:37]} Bh6 {[%emt 0:04:08]} 21. h3 {[%emt 0:03:46]} Bc1 {[%emt 0:03:47]} 22. Nd3 {[%emt 0:00:37]} Nxd3+ {[%emt 0:01:04]} 23. Bxd3 {[%emt 0:00:07]} Rb8 {[%emt 0:00:44]} 24. Bxa6 {[%emt 0:04:20]} Bxb2 {[%emt 0:00:19]} 25. Ra4 {[%emt 0:00:18]} Bxc3+ {[%emt 0:00:15]} 26. Ke2 {[%emt 0:02:11]} Ra8 {[%emt 0:05:13]} 27. Bb5+ {[%emt 0:02:23]} Kd8 {[%emt 0:00:37]} 28. a6 {[%emt 0:00:32]} b2 {[%emt 0:01:34]} 29. Bc6 {[%emt 0:02:15]} Ra7 {[%emt 0:00:13]} 30. Bb7 {[%emt 0:00:48]} Kd7 {[%emt 0:02:09]} 31. Rh4 {[%emt 0:03:20]} Rh8 {[%emt 0:01:11]} 32. Rh6 {[%emt 0:04:17]} Ke7 {[%emt 0:01:15]} 33. Rh4 {[%emt 0:01:10]} Bd4 $15 {[%emt 0:00:49]} 34. Kf3 {[%emt 0:02:08]} Kf8 {[%emt 0:03:30]} 1/2-1/2

[Event "FRA-ch Youth U20 2018"]
[Site "Agen"]
[Date "2018.04.22"]
[Round "9"]
[White "Aubert, Laurane"]
[Black "Azan, Sarah"]
[Result "1-0"]
[ECO "B18"]
[WhiteElo "1952"]
[BlackElo "1381"]
[Annotator "NA RC"]
[PlyCount "71"]
[EventDate "2018.??.??"]
[EventType "swiss"]
[EventCountry "FRA"]
[SourceTitle "playchess.com"]
[Source "ChessBase"]
[SourceQuality "1"]
[TimeControl "5400+30"]

{[%evp 24,71,216,32767,32767,200,229,231,32767,32767,218,229,236,229,283,278,312,360,357,360,346,32767,32767,345,32767,274,456,248,32767,364,32767,32767,32767,32767,268,289,302,307,32767,32767,32767,32767,282,307,442,456,479,759,32767,711]} 1. e4 {[%emt 0:00:00]} c6 {[%emt 0:00:10]} 2. d4 {[%emt 0:00:00]} d5 {[%emt 0:00:04]} 3. Nc3 {[%emt 0:00:00]} dxe4 {[%emt 0:00:07]} 4. Nxe4 {[%emt 0:00:00]} Bf5 {[%emt 0:00:06]} 5. Ng3 {[%emt 0:00:00]} Bg6 {[%emt 0:00:14]} 6. Nh3 {[%emt 0:00:00]} h6 {[%emt 0:05:11]} 7. Nf4 {[%emt 0:00:00]} Bh7 {[%emt 0:00:13]} 8. Bc4 {[%emt 0:00:19]} e6 {[%emt 0:02:27] B18: Classical Caro-Kann: 4...Bf5 sidelines} (8... Nf6 9. O-O Na6 10. c3 Nc7 11. Qb3 e6 12. Qxb7 Qd7 13. Ngh5 Nfd5 14. Nxd5 cxd5 15. Bb5 Qxb5 16. Qxc7 Qb6 {1-0 (46) Lugovskoy,M (2489)-Mikhailov,S (2304) Taganrog 2016}) 9. O-O {[%emt 0:00:08]} Nf6 {[%emt 0:04:13]} 10. Re1 {[%emt 0:00:07]} Nd5 {[%emt 0:02:49]} 11. Bxd5 {[%emt 0:00:31]} cxd5 {[%emt 0:00:08]} 12. Qh5 {[%emt 0:00:04]} g6 {[%emt 0:04:38]} 13. Qe5 {[%emt 0:03:55]} Rg8 {[%emt 0:07:04]} 14. Qxd5 {[%emt 0:10:31]} Qxd5 {[%emt 0:03:14]} 15. Nxd5 {[%emt 0:00:05]} Kd8 {[%emt 0:01:29]} 16. Nf6 {[%emt 0:00:21]} Rh8 {[%emt 0:00:45]} 17. d5 $146 {[%emt 0:03:50]} Bg7 {[%emt 0:09:23]} 18. Nxh7 {[%emt 0:00:52]} ({Less strong is} 18. dxe6 Bxf6 19. Bxh6 Ke7 $14) 18... Rxh7 {[%emt 0:00:14]} 19. dxe6 {[%emt 0:00:06]} fxe6 {[%emt 0:00:33]} 20. Rxe6 {[%emt 0:00:09]} g5 {[%emt 0:01:59]} 21. Nf5 {[%emt 0:04:03]} Bf8 {[%emt 0:04:32]} 22. Bd2 {[%emt 0:02:01]} Nd7 {[%emt 0:02:07]} 23. Rae1 {[%emt 0:01:01]} Kc7 {[%emt 0:01:57]} 24. Nd4 {[%emt 0:00:48]} Rd8 $2 {[%emt 0:02:43]} (24... b6 {was worth a try.} 25. f4 gxf4 26. Bxf4+ Kb7) 25. R6e2 {[%emt 0:04:39]} (25. Nb5+ $142 Kb8 26. Re8) 25... Kb8 {[%emt 0:03:16]} 26. Ne6 {[%emt 0:00:45]} Rc8 {[%emt 0:01:30]} 27. Nxf8 {[%emt 0:07:28]} Nxf8 {[%emt 0:01:14]} 28. Bb4 {[%emt 0:01:46]} b6 {[%emt 0:03:07]} 29. Re8 {[%emt 0:01:39]} Ng6 {[%emt 0:01:59]} 30. g3 {[%emt 0:02:38]} Nh8 {[%emt 0:02:35]} 31. Bd6+ {[%emt 0:02:32]} Kb7 {[%emt 0:00:13]} 32. c3 {[%emt 0:00:52]} Rxe8 {[%emt 0:03:00]} 33. Rxe8 {[%emt 0:00:07]} Nf7 {[%emt 0:00:19]} (33... Rd7 {keeps fighting.} 34. Ba3 Nf7) 34. Re7+ {[%emt 0:02:20]} Ka6 {[%emt 0:00:43]} 35. c4 {[%emt 0:01:27]} Rg7 {[%emt 0:01:22]} 36. b4 $18 {[%emt 0:01:33]} 1-0